{"text_format":"3","workbook":"xlsx","n_sheets":4,"sheets":["EVENTOS","CALENDÁRIO","VERSÃO DE IMPRESSÃO","ADMINISTRADOR"],"not_rendered":{"defined_names":18},"read":"whole","date_system":"1900"}

{"sheet":"EVENTOS","index":0,"n_rows":38,"n_cols":5,"rows_kept":38}
[]
[null,"PLANEADOR DE EVENTOS"]
[null,"COMUNITÁRIOS MENSAIS"]
[]
[]
[]
[]
[null,"DATA","DIA","MÊS","NOME DO EVENTO"]
[null,"2016-07-01",{"$f":"IF(ISBLANK(tblEventos[[#This Row],[DATA]]),\"\",UPPER(TEXT(tblEventos[[#This Row],[DATA]],\"ddd\")))","v":"SEX"},{"$f":"IF(ISBLANK(tblEventos[[#This Row],[DATA]]),\"\",UPPER(TEXT(tblEventos[[#This Row],[DATA]],\"mmm\")))","v":"JUL"},"Jardim Comunitário"]
[null,"2016-07-01",{"$f":"IF(ISBLANK(tblEventos[[#This Row],[DATA]]),\"\",UPPER(TEXT(tblEventos[[#This Row],[DATA]],\"ddd\")))","v":"SEX"},{"$f":"IF(ISBLANK(tblEventos[[#This Row],[DATA]]),\"\",UPPER(TEXT(tblEventos[[#This Row],[DATA]],\"mmm\")))","v":"JUL"},"Câmara Municipal"]
[null,"2016-07-02",{"$f":"IF(ISBLANK(tblEventos[[#This Row],[DATA]]),\"\",UPPER(TEXT(tblEventos[[#This Row],[DATA]],\"ddd\")))","v":"SÁB"},{"$f":"IF(ISBLANK(tblEventos[[#This Row],[DATA]]),\"\",UPPER(TEXT(tblEventos[[#This Row],[DATA]],\"mmm\")))","v":"JUL"},"Jardim Comunitário"]
[null,"2016-07-03",{"$f":"IF(ISBLANK(tblEventos[[#This Row],[DATA]]),\"\",UPPER(TEXT(tblEventos[[#This Row],[DATA]],\"ddd\")))","v":"DOM"},{"$f":"IF(ISBLANK(tblEventos[[#This Row],[DATA]]),\"\",UPPER(TEXT(tblEventos[[#This Row],[DATA]],\"mmm\")))","v":"JUL"},"Noite de Cinema no Parque"]
[null,"2016-07-08",{"$f":"IF(ISBLANK(tblEventos[[#This Row],[DATA]]),\"\",UPPER(TEXT(tblEventos[[#This Row],[DATA]],\"ddd\")))","v":"SEX"},{"$f":"IF(ISBLANK(tblEventos[[#This Row],[DATA]]),\"\",UPPER(TEXT(tblEventos[[#This Row],[DATA]],\"mmm\")))","v":"JUL"},"Câmara Municipal"]
[null,"2016-07-11",{"$f":"IF(ISBLANK(tblEventos[[#This Row],[DATA]]),\"\",UPPER(TEXT(tblEventos[[#This Row],[DATA]],\"ddd\")))","v":"SEG"},{"$f":"IF(ISBLANK(tblEventos[[#This Row],[DATA]]),\"\",UPPER(TEXT(tblEventos[[#This Row],[DATA]],\"mmm\")))","v":"JUL"},"Câmara de Comércio Almoço"]
[null,"2016-07-12",{"$f":"IF(ISBLANK(tblEventos[[#This Row],[DATA]]),\"\",UPPER(TEXT(tblEventos[[#This Row],[DATA]],\"ddd\")))","v":"TER"},{"$f":"IF(ISBLANK(tblEventos[[#This Row],[DATA]]),\"\",UPPER(TEXT(tblEventos[[#This Row],[DATA]],\"mmm\")))","v":"JUL"},"Exposição de Antiguidades"]
[null,"2016-07-14",{"$f":"IF(ISBLANK(tblEventos[[#This Row],[DATA]]),\"\",UPPER(TEXT(tblEventos[[#This Row],[DATA]],\"ddd\")))","v":"QUI"},{"$f":"IF(ISBLANK(tblEventos[[#This Row],[DATA]]),\"\",UPPER(TEXT(tblEventos[[#This Row],[DATA]],\"mmm\")))","v":"JUL"},"Workshop Comunitário"]
[null,"2016-07-15",{"$f":"IF(ISBLANK(tblEventos[[#This Row],[DATA]]),\"\",UPPER(TEXT(tblEventos[[#This Row],[DATA]],\"ddd\")))","v":"SEX"},{"$f":"IF(ISBLANK(tblEventos[[#This Row],[DATA]]),\"\",UPPER(TEXT(tblEventos[[#This Row],[DATA]],\"mmm\")))","v":"JUL"},"Câmara Municipal"]
[null,"2016-07-19",{"$f":"IF(ISBLANK(tblEventos[[#This Row],[DATA]]),\"\",UPPER(TEXT(tblEventos[[#This Row],[DATA]],\"ddd\")))","v":"TER"},{"$f":"IF(ISBLANK(tblEventos[[#This Row],[DATA]]),\"\",UPPER(TEXT(tblEventos[[#This Row],[DATA]],\"mmm\")))","v":"JUL"},"Workshop de Planeamento Estratégico"]
[null,"2016-07-20",{"$f":"IF(ISBLANK(tblEventos[[#This Row],[DATA]]),\"\",UPPER(TEXT(tblEventos[[#This Row],[DATA]],\"ddd\")))","v":"QUA"},{"$f":"IF(ISBLANK(tblEventos[[#This Row],[DATA]]),\"\",UPPER(TEXT(tblEventos[[#This Row],[DATA]],\"mmm\")))","v":"JUL"},"Limpeza do Parque"]
[null,"2016-07-22",{"$f":"IF(ISBLANK(tblEventos[[#This Row],[DATA]]),\"\",UPPER(TEXT(tblEventos[[#This Row],[DATA]],\"ddd\")))","v":"SEX"},{"$f":"IF(ISBLANK(tblEventos[[#This Row],[DATA]]),\"\",UPPER(TEXT(tblEventos[[#This Row],[DATA]],\"mmm\")))","v":"JUL"},"Câmara Municipal"]
[null,"2016-07-26",{"$f":"IF(ISBLANK(tblEventos[[#This Row],[DATA]]),\"\",UPPER(TEXT(tblEventos[[#This Row],[DATA]],\"ddd\")))","v":"TER"},{"$f":"IF(ISBLANK(tblEventos[[#This Row],[DATA]]),\"\",UPPER(TEXT(tblEventos[[#This Row],[DATA]],\"mmm\")))","v":"JUL"},"Visita Guiada ao Centro da Cidade"]
[null,"2016-07-26",{"$f":"IF(ISBLANK(tblEventos[[#This Row],[DATA]]),\"\",UPPER(TEXT(tblEventos[[#This Row],[DATA]],\"ddd\")))","v":"TER"},{"$f":"IF(ISBLANK(tblEventos[[#This Row],[DATA]]),\"\",UPPER(TEXT(tblEventos[[#This Row],[DATA]],\"mmm\")))","v":"JUL"},"Visita aos Bares"]
[null,"2016-07-29",{"$f":"IF(ISBLANK(tblEventos[[#This Row],[DATA]]),\"\",UPPER(TEXT(tblEventos[[#This Row],[DATA]],\"ddd\")))","v":"SEX"},{"$f":"IF(ISBLANK(tblEventos[[#This Row],[DATA]]),\"\",UPPER(TEXT(tblEventos[[#This Row],[DATA]],\"mmm\")))","v":"JUL"},"Câmara Municipal"]
[null,"2016-08-05",{"$f":"IF(ISBLANK(tblEventos[[#This Row],[DATA]]),\"\",UPPER(TEXT(tblEventos[[#This Row],[DATA]],\"ddd\")))","v":"SEX"},{"$f":"IF(ISBLANK(tblEventos[[#This Row],[DATA]]),\"\",UPPER(TEXT(tblEventos[[#This Row],[DATA]],\"mmm\")))","v":"AGO"},"Câmara Municipal"]
[null,"2016-08-10",{"$f":"IF(ISBLANK(tblEventos[[#This Row],[DATA]]),\"\",UPPER(TEXT(tblEventos[[#This Row],[DATA]],\"ddd\")))","v":"QUA"},{"$f":"IF(ISBLANK(tblEventos[[#This Row],[DATA]]),\"\",UPPER(TEXT(tblEventos[[#This Row],[DATA]],\"mmm\")))","v":"AGO"},"Limpeza do Parque"]
[null,"2016-08-12",{"$f":"IF(ISBLANK(tblEventos[[#This Row],[DATA]]),\"\",UPPER(TEXT(tblEventos[[#This Row],[DATA]],\"ddd\")))","v":"SEX"},{"$f":"IF(ISBLANK(tblEventos[[#This Row],[DATA]]),\"\",UPPER(TEXT(tblEventos[[#This Row],[DATA]],\"mmm\")))","v":"AGO"},"Câmara Municipal"]
[null,"2016-08-13",{"$f":"IF(ISBLANK(tblEventos[[#This Row],[DATA]]),\"\",UPPER(TEXT(tblEventos[[#This Row],[DATA]],\"ddd\")))","v":"SÁB"},{"$f":"IF(ISBLANK(tblEventos[[#This Row],[DATA]]),\"\",UPPER(TEXT(tblEventos[[#This Row],[DATA]],\"mmm\")))","v":"AGO"},"Jardim Comunitário"]
[null,"2016-09-01",{"$f":"IF(ISBLANK(tblEventos[[#This Row],[DATA]]),\"\",UPPER(TEXT(tblEventos[[#This Row],[DATA]],\"ddd\")))","v":"QUI"},{"$f":"IF(ISBLANK(tblEventos[[#This Row],[DATA]]),\"\",UPPER(TEXT(tblEventos[[#This Row],[DATA]],\"mmm\")))","v":"SET"},"Comité Orçamental"]
[null,"2016-10-01",{"$f":"IF(ISBLANK(tblEventos[[#This Row],[DATA]]),\"\",UPPER(TEXT(tblEventos[[#This Row],[DATA]],\"ddd\")))","v":"SÁB"},{"$f":"IF(ISBLANK(tblEventos[[#This Row],[DATA]]),\"\",UPPER(TEXT(tblEventos[[#This Row],[DATA]],\"mmm\")))","v":"OUT"},"Comité Orçamental"]
[null,"2016-11-03",{"$f":"IF(ISBLANK(tblEventos[[#This Row],[DATA]]),\"\",UPPER(TEXT(tblEventos[[#This Row],[DATA]],\"ddd\")))","v":"QUI"},{"$f":"IF(ISBLANK(tblEventos[[#This Row],[DATA]]),\"\",UPPER(TEXT(tblEventos[[#This Row],[DATA]],\"mmm\")))","v":"NOV"},"Comité Orçamental"]
[null,"2016-12-01",{"$f":"IF(ISBLANK(tblEventos[[#This Row],[DATA]]),\"\",UPPER(TEXT(tblEventos[[#This Row],[DATA]],\"ddd\")))","v":"QUI"},{"$f":"IF(ISBLANK(tblEventos[[#This Row],[DATA]]),\"\",UPPER(TEXT(tblEventos[[#This Row],[DATA]],\"mmm\")))","v":"DEZ"},"Comité Orçamental"]
[null,"2017-01-01",{"$f":"IF(ISBLANK(tblEventos[[#This Row],[DATA]]),\"\",UPPER(TEXT(tblEventos[[#This Row],[DATA]],\"ddd\")))","v":"DOM"},{"$f":"IF(ISBLANK(tblEventos[[#This Row],[DATA]]),\"\",UPPER(TEXT(tblEventos[[#This Row],[DATA]],\"mmm\")))","v":"JAN"},"Comité Orçamental"]
[null,"2017-02-02",{"$f":"IF(ISBLANK(tblEventos[[#This Row],[DATA]]),\"\",UPPER(TEXT(tblEventos[[#This Row],[DATA]],\"ddd\")))","v":"QUI"},{"$f":"IF(ISBLANK(tblEventos[[#This Row],[DATA]]),\"\",UPPER(TEXT(tblEventos[[#This Row],[DATA]],\"mmm\")))","v":"FEV"},"Comité Orçamental"]
[null,"2017-03-02",{"$f":"IF(ISBLANK(tblEventos[[#This Row],[DATA]]),\"\",UPPER(TEXT(tblEventos[[#This Row],[DATA]],\"ddd\")))","v":"QUI"},{"$f":"IF(ISBLANK(tblEventos[[#This Row],[DATA]]),\"\",UPPER(TEXT(tblEventos[[#This Row],[DATA]],\"mmm\")))","v":"MAR"},"Comité Orçamental"]
[null,"2017-04-01",{"$f":"IF(ISBLANK(tblEventos[[#This Row],[DATA]]),\"\",UPPER(TEXT(tblEventos[[#This Row],[DATA]],\"ddd\")))","v":"SÁB"},{"$f":"IF(ISBLANK(tblEventos[[#This Row],[DATA]]),\"\",UPPER(TEXT(tblEventos[[#This Row],[DATA]],\"mmm\")))","v":"ABR"},"Comité Orçamental"]
[null,"2017-05-01",{"$f":"IF(ISBLANK(tblEventos[[#This Row],[DATA]]),\"\",UPPER(TEXT(tblEventos[[#This Row],[DATA]],\"ddd\")))","v":"SEG"},{"$f":"IF(ISBLANK(tblEventos[[#This Row],[DATA]]),\"\",UPPER(TEXT(tblEventos[[#This Row],[DATA]],\"mmm\")))","v":"MAI"},"Comité Orçamental"]
[null,"2017-06-01",{"$f":"IF(ISBLANK(tblEventos[[#This Row],[DATA]]),\"\",UPPER(TEXT(tblEventos[[#This Row],[DATA]],\"ddd\")))","v":"QUI"},{"$f":"IF(ISBLANK(tblEventos[[#This Row],[DATA]]),\"\",UPPER(TEXT(tblEventos[[#This Row],[DATA]],\"mmm\")))","v":"JUN"},"Comité Orçamental"]
[null,"2017-06-02",{"$f":"IF(ISBLANK(tblEventos[[#This Row],[DATA]]),\"\",UPPER(TEXT(tblEventos[[#This Row],[DATA]],\"ddd\")))","v":"SEX"},{"$f":"IF(ISBLANK(tblEventos[[#This Row],[DATA]]),\"\",UPPER(TEXT(tblEventos[[#This Row],[DATA]],\"mmm\")))","v":"JUN"},"Câmara Municipal"]

{"sheet":"CALENDÁRIO","index":1,"n_rows":35,"n_cols":21,"rows_kept":35,"merged":[[1,5,1,11],[30,8,34,20]]}
[]
[null,null,2016,null,null,{"$f":"LOOKUP(NúmDoMês,tblMeses[NÚMERO],tblMeses[MÊS])","v":"JULHO"}]
[null,null,7,null,null,{"$f":"DATE(VerAno,NúmDoMês,1)","v":"2016-07-01"},null,null,{"$f":"WEEKDAY(DataDeInício)","v":6}]
[null,null,"SEG",null,null,"TER",null,null,"QUA",null,null,"QUI",null,null,"SEX",null,null,"SÁB",null,null,"DOM"]
[]
[null,null,{"$f":"DataDeInício-(WEEKDAY(DataDeInício)-2)+{0;1;2;3;4;5}*7 +{1,2,3,4,5,6,7}-3+COLUMN(B1)","v":"2016-06-27"},null,null,{"$f":"DataDeInício-(WEEKDAY(DataDeInício)-2)+{0;1;2;3;4;5}*7 +{1,2,3,4,5,6,7}-3+COLUMN(C1)","v":"2016-06-28"},null,null,{"$f":"DataDeInício-(WEEKDAY(DataDeInício)-2)+{0;1;2;3;4;5}*7 +{1,2,3,4,5,6,7}-3+COLUMN(D1)","v":"2016-06-29"},null,null,{"$f":"DataDeInício-(WEEKDAY(DataDeInício)-2)+{0;1;2;3;4;5}*7 +{1,2,3,4,5,6,7}-3+COLUMN(E1)","v":"2016-06-30"},null,null,{"$f":"DataDeInício-(WEEKDAY(DataDeInício)-2)+{0;1;2;3;4;5}*7 +{1,2,3,4,5,6,7}-3+COLUMN(F1)","v":"2016-07-01"},null,null,{"$f":"DataDeInício-(WEEKDAY(DataDeInício)-2)+{0;1;2;3;4;5}*7 +{1,2,3,4,5,6,7}-3+COLUMN(G1)","v":"2016-07-02"},null,null,{"$f":"DataDeInício-(WEEKDAY(DataDeInício)-2)+{0;1;2;3;4;5}*7 +{1,2,3,4,5,6,7}-3+COLUMN(H1)","v":"2016-07-03"}]
[null,null,{"$f":"IFERROR(INDEX(tblEventos[],SMALL(IF(Datas=C$6,ROW(Datas)),ROW(1:1))-InícioDaLinhaDaTabela,4),\"\")","v":""},null,null,{"$f":"IFERROR(INDEX(tblEventos[],SMALL(IF(Datas=F$6,ROW(Datas)),ROW(1:1))-InícioDaLinhaDaTabela,4),\"\")","v":""},null,null,{"$f":"IFERROR(INDEX(tblEventos[],SMALL(IF(Datas=I$6,ROW(Datas)),ROW(1:1))-InícioDaLinhaDaTabela,4),\"\")","v":""},null,null,{"$f":"IFERROR(INDEX(tblEventos[],SMALL(IF(Datas=L$6,ROW(Datas)),ROW(1:1))-InícioDaLinhaDaTabela,4),\"\")","v":""},null,null,{"$f":"IFERROR(INDEX(tblEventos[],SMALL(IF(Datas=O$6,ROW(Datas)),ROW(1:1))-InícioDaLinhaDaTabela,4),\"\")","v":"Jardim Comunitário"},null,null,{"$f":"IFERROR(INDEX(tblEventos[],SMALL(IF(Datas=R$6,ROW(Datas)),ROW(1:1))-InícioDaLinhaDaTabela,4),\"\")","v":"Jardim Comunitário"},null,null,{"$f":"IFERROR(INDEX(tblEventos[],SMALL(IF(Datas=U$6,ROW(Datas)),ROW(1:1))-InícioDaLinhaDaTabela,4),\"\")","v":"Noite de Cinema no Parque"}]
[null,null,{"$f":"IFERROR(INDEX(tblEventos[],SMALL(IF(Datas=C$6,ROW(Datas)),ROW(2:2))-InícioDaLinhaDaTabela,4),\"\")","v":""},null,null,{"$f":"IFERROR(INDEX(tblEventos[],SMALL(IF(Datas=F$6,ROW(Datas)),ROW(2:2))-InícioDaLinhaDaTabela,4),\"\")","v":""},null,null,{"$f":"IFERROR(INDEX(tblEventos[],SMALL(IF(Datas=I$6,ROW(Datas)),ROW(2:2))-InícioDaLinhaDaTabela,4),\"\")","v":""},null,null,{"$f":"IFERROR(INDEX(tblEventos[],SMALL(IF(Datas=L$6,ROW(Datas)),ROW(2:2))-InícioDaLinhaDaTabela,4),\"\")","v":""},null,null,{"$f":"IFERROR(INDEX(tblEventos[],SMALL(IF(Datas=O$6,ROW(Datas)),ROW(2:2))-InícioDaLinhaDaTabela,4),\"\")","v":"Câmara Municipal"},null,null,{"$f":"IFERROR(INDEX(tblEventos[],SMALL(IF(Datas=R$6,ROW(Datas)),ROW(2:2))-InícioDaLinhaDaTabela,4),\"\")","v":""},null,null,{"$f":"IFERROR(INDEX(tblEventos[],SMALL(IF(Datas=U$6,ROW(Datas)),ROW(2:2))-InícioDaLinhaDaTabela,4),\"\")","v":""}]
[null,null,{"$f":"IFERROR(INDEX(tblEventos[],SMALL(IF(Datas=C$6,ROW(Datas)),ROW(3:3))-InícioDaLinhaDaTabela,4),\"\")","v":""},null,null,{"$f":"IFERROR(INDEX(tblEventos[],SMALL(IF(Datas=F$6,ROW(Datas)),ROW(3:3))-InícioDaLinhaDaTabela,4),\"\")","v":""},null,null,{"$f":"IFERROR(INDEX(tblEventos[],SMALL(IF(Datas=I$6,ROW(Datas)),ROW(3:3))-InícioDaLinhaDaTabela,4),\"\")","v":""},null,null,{"$f":"IFERROR(INDEX(tblEventos[],SMALL(IF(Datas=L$6,ROW(Datas)),ROW(3:3))-InícioDaLinhaDaTabela,4),\"\")","v":""},null,null,{"$f":"IFERROR(INDEX(tblEventos[],SMALL(IF(Datas=O$6,ROW(Datas)),ROW(3:3))-InícioDaLinhaDaTabela,4),\"\")","v":""},null,null,{"$f":"IFERROR(INDEX(tblEventos[],SMALL(IF(Datas=R$6,ROW(Datas)),ROW(3:3))-InícioDaLinhaDaTabela,4),\"\")","v":""},null,null,{"$f":"IFERROR(INDEX(tblEventos[],SMALL(IF(Datas=U$6,ROW(Datas)),ROW(3:3))-InícioDaLinhaDaTabela,4),\"\")","v":""}]
[null,null,{"$f":"IFERROR(INDEX(tblEventos[],SMALL(IF(Datas=C$6,ROW(Datas)),ROW(4:4))-InícioDaLinhaDaTabela,4),\"\")","v":""},null,null,{"$f":"IFERROR(INDEX(tblEventos[],SMALL(IF(Datas=F$6,ROW(Datas)),ROW(4:4))-InícioDaLinhaDaTabela,4),\"\")","v":""},null,null,{"$f":"IFERROR(INDEX(tblEventos[],SMALL(IF(Datas=I$6,ROW(Datas)),ROW(4:4))-InícioDaLinhaDaTabela,4),\"\")","v":""},null,null,{"$f":"IFERROR(INDEX(tblEventos[],SMALL(IF(Datas=L$6,ROW(Datas)),ROW(4:4))-InícioDaLinhaDaTabela,4),\"\")","v":""},null,null,{"$f":"IFERROR(INDEX(tblEventos[],SMALL(IF(Datas=O$6,ROW(Datas)),ROW(4:4))-InícioDaLinhaDaTabela,4),\"\")","v":""},null,null,{"$f":"IFERROR(INDEX(tblEventos[],SMALL(IF(Datas=R$6,ROW(Datas)),ROW(4:4))-InícioDaLinhaDaTabela,4),\"\")","v":""},null,null,{"$f":"IFERROR(INDEX(tblEventos[],SMALL(IF(Datas=U$6,ROW(Datas)),ROW(4:4))-InícioDaLinhaDaTabela,4),\"\")","v":""}]
[null,null,{"$f":"U6+1","v":"2016-07-04"},null,null,{"$f":"C11+1","v":"2016-07-05"},null,null,{"$f":"F11+1","v":"2016-07-06"},null,null,{"$f":"I11+1","v":"2016-07-07"},null,null,{"$f":"L11+1","v":"2016-07-08"},null,null,{"$f":"O11+1","v":"2016-07-09"},null,null,{"$f":"R11+1","v":"2016-07-10"}]
[null,null,{"$f":"IFERROR(INDEX(tblEventos[],SMALL(IF(Datas=C$11,ROW(Datas)),ROW(1:1))-InícioDaLinhaDaTabela,4),\"\")","v":""},null,null,{"$f":"IFERROR(INDEX(tblEventos[],SMALL(IF(Datas=F$11,ROW(Datas)),ROW(1:1))-InícioDaLinhaDaTabela,4),\"\")","v":""},null,null,{"$f":"IFERROR(INDEX(tblEventos[],SMALL(IF(Datas=I$11,ROW(Datas)),ROW(1:1))-InícioDaLinhaDaTabela,4),\"\")","v":""},null,null,{"$f":"IFERROR(INDEX(tblEventos[],SMALL(IF(Datas=L$11,ROW(Datas)),ROW(1:1))-InícioDaLinhaDaTabela,4),\"\")","v":""},null,null,{"$f":"IFERROR(INDEX(tblEventos[],SMALL(IF(Datas=O$11,ROW(Datas)),ROW(1:1))-InícioDaLinhaDaTabela,4),\"\")","v":"Câmara Municipal"},null,null,{"$f":"IFERROR(INDEX(tblEventos[],SMALL(IF(Datas=R$11,ROW(Datas)),ROW(1:1))-InícioDaLinhaDaTabela,4),\"\")","v":""},null,null,{"$f":"IFERROR(INDEX(tblEventos[],SMALL(IF(Datas=U$11,ROW(Datas)),ROW(1:1))-InícioDaLinhaDaTabela,4),\"\")","v":""}]
[null,null,{"$f":"IFERROR(INDEX(tblEventos[],SMALL(IF(Datas=C$11,ROW(Datas)),ROW(2:2))-InícioDaLinhaDaTabela,4),\"\")","v":""},null,null,{"$f":"IFERROR(INDEX(tblEventos[],SMALL(IF(Datas=F$11,ROW(Datas)),ROW(2:2))-InícioDaLinhaDaTabela,4),\"\")","v":""},null,null,{"$f":"IFERROR(INDEX(tblEventos[],SMALL(IF(Datas=I$11,ROW(Datas)),ROW(2:2))-InícioDaLinhaDaTabela,4),\"\")","v":""},null,null,{"$f":"IFERROR(INDEX(tblEventos[],SMALL(IF(Datas=L$11,ROW(Datas)),ROW(2:2))-InícioDaLinhaDaTabela,4),\"\")","v":""},null,null,{"$f":"IFERROR(INDEX(tblEventos[],SMALL(IF(Datas=O$11,ROW(Datas)),ROW(2:2))-InícioDaLinhaDaTabela,4),\"\")","v":""},null,null,{"$f":"IFERROR(INDEX(tblEventos[],SMALL(IF(Datas=R$11,ROW(Datas)),ROW(2:2))-InícioDaLinhaDaTabela,4),\"\")","v":""},null,null,{"$f":"IFERROR(INDEX(tblEventos[],SMALL(IF(Datas=U$11,ROW(Datas)),ROW(2:2))-InícioDaLinhaDaTabela,4),\"\")","v":""}]
[null,null,{"$f":"IFERROR(INDEX(tblEventos[],SMALL(IF(Datas=C$11,ROW(Datas)),ROW(3:3))-InícioDaLinhaDaTabela,4),\"\")","v":""},null,null,{"$f":"IFERROR(INDEX(tblEventos[],SMALL(IF(Datas=F$11,ROW(Datas)),ROW(3:3))-InícioDaLinhaDaTabela,4),\"\")","v":""},null,null,{"$f":"IFERROR(INDEX(tblEventos[],SMALL(IF(Datas=I$11,ROW(Datas)),ROW(3:3))-InícioDaLinhaDaTabela,4),\"\")","v":""},null,null,{"$f":"IFERROR(INDEX(tblEventos[],SMALL(IF(Datas=L$11,ROW(Datas)),ROW(3:3))-InícioDaLinhaDaTabela,4),\"\")","v":""},null,null,{"$f":"IFERROR(INDEX(tblEventos[],SMALL(IF(Datas=O$11,ROW(Datas)),ROW(3:3))-InícioDaLinhaDaTabela,4),\"\")","v":""},null,null,{"$f":"IFERROR(INDEX(tblEventos[],SMALL(IF(Datas=R$11,ROW(Datas)),ROW(3:3))-InícioDaLinhaDaTabela,4),\"\")","v":""},null,null,{"$f":"IFERROR(INDEX(tblEventos[],SMALL(IF(Datas=U$11,ROW(Datas)),ROW(3:3))-InícioDaLinhaDaTabela,4),\"\")","v":""}]
[null,null,{"$f":"IFERROR(INDEX(tblEventos[],SMALL(IF(Datas=C$11,ROW(Datas)),ROW(4:4))-InícioDaLinhaDaTabela,4),\"\")","v":""},null,null,{"$f":"IFERROR(INDEX(tblEventos[],SMALL(IF(Datas=F$11,ROW(Datas)),ROW(4:4))-InícioDaLinhaDaTabela,4),\"\")","v":""},null,null,{"$f":"IFERROR(INDEX(tblEventos[],SMALL(IF(Datas=I$11,ROW(Datas)),ROW(4:4))-InícioDaLinhaDaTabela,4),\"\")","v":""},null,null,{"$f":"IFERROR(INDEX(tblEventos[],SMALL(IF(Datas=L$11,ROW(Datas)),ROW(4:4))-InícioDaLinhaDaTabela,4),\"\")","v":""},null,null,{"$f":"IFERROR(INDEX(tblEventos[],SMALL(IF(Datas=O$11,ROW(Datas)),ROW(4:4))-InícioDaLinhaDaTabela,4),\"\")","v":""},null,null,{"$f":"IFERROR(INDEX(tblEventos[],SMALL(IF(Datas=R$11,ROW(Datas)),ROW(4:4))-InícioDaLinhaDaTabela,4),\"\")","v":""},null,null,{"$f":"IFERROR(INDEX(tblEventos[],SMALL(IF(Datas=U$11,ROW(Datas)),ROW(4:4))-InícioDaLinhaDaTabela,4),\"\")","v":""}]
[null,null,{"$f":"U11+1","v":"2016-07-11"},null,null,{"$f":"C16+1","v":"2016-07-12"},null,null,{"$f":"F16+1","v":"2016-07-13"},null,null,{"$f":"I16+1","v":"2016-07-14"},null,null,{"$f":"L16+1","v":"2016-07-15"},null,null,{"$f":"O16+1","v":"2016-07-16"},null,null,{"$f":"R16+1","v":"2016-07-17"}]
[null,null,{"$f":"IFERROR(INDEX(tblEventos[],SMALL(IF(Datas=C$16,ROW(Datas)),ROW(1:1))-InícioDaLinhaDaTabela,4),\"\")","v":"Câmara de Comércio Almoço"},null,null,{"$f":"IFERROR(INDEX(tblEventos[],SMALL(IF(Datas=F$16,ROW(Datas)),ROW(1:1))-InícioDaLinhaDaTabela,4),\"\")","v":"Exposição de Antiguidades"},null,null,{"$f":"IFERROR(INDEX(tblEventos[],SMALL(IF(Datas=I$16,ROW(Datas)),ROW(1:1))-InícioDaLinhaDaTabela,4),\"\")","v":""},null,null,{"$f":"IFERROR(INDEX(tblEventos[],SMALL(IF(Datas=L$16,ROW(Datas)),ROW(1:1))-InícioDaLinhaDaTabela,4),\"\")","v":"Workshop Comunitário"},null,null,{"$f":"IFERROR(INDEX(tblEventos[],SMALL(IF(Datas=O$16,ROW(Datas)),ROW(1:1))-InícioDaLinhaDaTabela,4),\"\")","v":"Câmara Municipal"},null,null,{"$f":"IFERROR(INDEX(tblEventos[],SMALL(IF(Datas=R$16,ROW(Datas)),ROW(1:1))-InícioDaLinhaDaTabela,4),\"\")","v":""},null,null,{"$f":"IFERROR(INDEX(tblEventos[],SMALL(IF(Datas=U$16,ROW(Datas)),ROW(1:1))-InícioDaLinhaDaTabela,4),\"\")","v":""}]
[null,null,{"$f":"IFERROR(INDEX(tblEventos[],SMALL(IF(Datas=C$16,ROW(Datas)),ROW(2:2))-InícioDaLinhaDaTabela,4),\"\")","v":""},null,null,{"$f":"IFERROR(INDEX(tblEventos[],SMALL(IF(Datas=F$16,ROW(Datas)),ROW(2:2))-InícioDaLinhaDaTabela,4),\"\")","v":""},null,null,{"$f":"IFERROR(INDEX(tblEventos[],SMALL(IF(Datas=I$16,ROW(Datas)),ROW(2:2))-InícioDaLinhaDaTabela,4),\"\")","v":""},null,null,{"$f":"IFERROR(INDEX(tblEventos[],SMALL(IF(Datas=L$16,ROW(Datas)),ROW(2:2))-InícioDaLinhaDaTabela,4),\"\")","v":""},null,null,{"$f":"IFERROR(INDEX(tblEventos[],SMALL(IF(Datas=O$16,ROW(Datas)),ROW(2:2))-InícioDaLinhaDaTabela,4),\"\")","v":""},null,null,{"$f":"IFERROR(INDEX(tblEventos[],SMALL(IF(Datas=R$16,ROW(Datas)),ROW(2:2))-InícioDaLinhaDaTabela,4),\"\")","v":""},null,null,{"$f":"IFERROR(INDEX(tblEventos[],SMALL(IF(Datas=U$16,ROW(Datas)),ROW(2:2))-InícioDaLinhaDaTabela,4),\"\")","v":""}]
[null,null,{"$f":"IFERROR(INDEX(tblEventos[],SMALL(IF(Datas=C$16,ROW(Datas)),ROW(3:3))-InícioDaLinhaDaTabela,4),\"\")","v":""},null,null,{"$f":"IFERROR(INDEX(tblEventos[],SMALL(IF(Datas=F$16,ROW(Datas)),ROW(3:3))-InícioDaLinhaDaTabela,4),\"\")","v":""},null,null,{"$f":"IFERROR(INDEX(tblEventos[],SMALL(IF(Datas=I$16,ROW(Datas)),ROW(3:3))-InícioDaLinhaDaTabela,4),\"\")","v":""},null,null,{"$f":"IFERROR(INDEX(tblEventos[],SMALL(IF(Datas=L$16,ROW(Datas)),ROW(3:3))-InícioDaLinhaDaTabela,4),\"\")","v":""},null,null,{"$f":"IFERROR(INDEX(tblEventos[],SMALL(IF(Datas=O$16,ROW(Datas)),ROW(3:3))-InícioDaLinhaDaTabela,4),\"\")","v":""},null,null,{"$f":"IFERROR(INDEX(tblEventos[],SMALL(IF(Datas=R$16,ROW(Datas)),ROW(3:3))-InícioDaLinhaDaTabela,4),\"\")","v":""},null,null,{"$f":"IFERROR(INDEX(tblEventos[],SMALL(IF(Datas=U$16,ROW(Datas)),ROW(3:3))-InícioDaLinhaDaTabela,4),\"\")","v":""}]
[null,null,{"$f":"IFERROR(INDEX(tblEventos[],SMALL(IF(Datas=C$16,ROW(Datas)),ROW(4:4))-InícioDaLinhaDaTabela,4),\"\")","v":""},null,null,{"$f":"IFERROR(INDEX(tblEventos[],SMALL(IF(Datas=F$16,ROW(Datas)),ROW(4:4))-InícioDaLinhaDaTabela,4),\"\")","v":""},null,null,{"$f":"IFERROR(INDEX(tblEventos[],SMALL(IF(Datas=I$16,ROW(Datas)),ROW(4:4))-InícioDaLinhaDaTabela,4),\"\")","v":""},null,null,{"$f":"IFERROR(INDEX(tblEventos[],SMALL(IF(Datas=L$16,ROW(Datas)),ROW(4:4))-InícioDaLinhaDaTabela,4),\"\")","v":""},null,null,{"$f":"IFERROR(INDEX(tblEventos[],SMALL(IF(Datas=O$16,ROW(Datas)),ROW(4:4))-InícioDaLinhaDaTabela,4),\"\")","v":""},null,null,{"$f":"IFERROR(INDEX(tblEventos[],SMALL(IF(Datas=R$16,ROW(Datas)),ROW(4:4))-InícioDaLinhaDaTabela,4),\"\")","v":""},null,null,{"$f":"IFERROR(INDEX(tblEventos[],SMALL(IF(Datas=U$16,ROW(Datas)),ROW(4:4))-InícioDaLinhaDaTabela,4),\"\")","v":""}]
[null,null,{"$f":"U16+1","v":"2016-07-18"},null,null,{"$f":"C21+1","v":"2016-07-19"},null,null,{"$f":"F21+1","v":"2016-07-20"},null,null,{"$f":"I21+1","v":"2016-07-21"},null,null,{"$f":"L21+1","v":"2016-07-22"},null,null,{"$f":"O21+1","v":"2016-07-23"},null,null,{"$f":"R21+1","v":"2016-07-24"}]
[null,null,{"$f":"IFERROR(INDEX(tblEventos[],SMALL(IF(Datas=C$21,ROW(Datas)),ROW(1:1))-InícioDaLinhaDaTabela,4),\"\")","v":""},null,null,{"$f":"IFERROR(INDEX(tblEventos[],SMALL(IF(Datas=F$21,ROW(Datas)),ROW(1:1))-InícioDaLinhaDaTabela,4),\"\")","v":"Workshop de Planeamento Estratégico"},null,null,{"$f":"IFERROR(INDEX(tblEventos[],SMALL(IF(Datas=I$21,ROW(Datas)),ROW(1:1))-InícioDaLinhaDaTabela,4),\"\")","v":"Limpeza do Parque"},null,null,{"$f":"IFERROR(INDEX(tblEventos[],SMALL(IF(Datas=L$21,ROW(Datas)),ROW(1:1))-InícioDaLinhaDaTabela,4),\"\")","v":""},null,null,{"$f":"IFERROR(INDEX(tblEventos[],SMALL(IF(Datas=O$21,ROW(Datas)),ROW(1:1))-InícioDaLinhaDaTabela,4),\"\")","v":"Câmara Municipal"},null,null,{"$f":"IFERROR(INDEX(tblEventos[],SMALL(IF(Datas=R$21,ROW(Datas)),ROW(1:1))-InícioDaLinhaDaTabela,4),\"\")","v":""},null,null,{"$f":"IFERROR(INDEX(tblEventos[],SMALL(IF(Datas=U$21,ROW(Datas)),ROW(1:1))-InícioDaLinhaDaTabela,4),\"\")","v":""}]
[null,null,{"$f":"IFERROR(INDEX(tblEventos[],SMALL(IF(Datas=C$21,ROW(Datas)),ROW(2:2))-InícioDaLinhaDaTabela,4),\"\")","v":""},null,null,{"$f":"IFERROR(INDEX(tblEventos[],SMALL(IF(Datas=F$21,ROW(Datas)),ROW(2:2))-InícioDaLinhaDaTabela,4),\"\")","v":""},null,null,{"$f":"IFERROR(INDEX(tblEventos[],SMALL(IF(Datas=I$21,ROW(Datas)),ROW(2:2))-InícioDaLinhaDaTabela,4),\"\")","v":""},null,null,{"$f":"IFERROR(INDEX(tblEventos[],SMALL(IF(Datas=L$21,ROW(Datas)),ROW(2:2))-InícioDaLinhaDaTabela,4),\"\")","v":""},null,null,{"$f":"IFERROR(INDEX(tblEventos[],SMALL(IF(Datas=O$21,ROW(Datas)),ROW(2:2))-InícioDaLinhaDaTabela,4),\"\")","v":""},null,null,{"$f":"IFERROR(INDEX(tblEventos[],SMALL(IF(Datas=R$21,ROW(Datas)),ROW(2:2))-InícioDaLinhaDaTabela,4),\"\")","v":""},null,null,{"$f":"IFERROR(INDEX(tblEventos[],SMALL(IF(Datas=U$21,ROW(Datas)),ROW(2:2))-InícioDaLinhaDaTabela,4),\"\")","v":""}]
[null,null,{"$f":"IFERROR(INDEX(tblEventos[],SMALL(IF(Datas=C$21,ROW(Datas)),ROW(3:3))-InícioDaLinhaDaTabela,4),\"\")","v":""},null,null,{"$f":"IFERROR(INDEX(tblEventos[],SMALL(IF(Datas=F$21,ROW(Datas)),ROW(3:3))-InícioDaLinhaDaTabela,4),\"\")","v":""},null,null,{"$f":"IFERROR(INDEX(tblEventos[],SMALL(IF(Datas=I$21,ROW(Datas)),ROW(3:3))-InícioDaLinhaDaTabela,4),\"\")","v":""},null,null,{"$f":"IFERROR(INDEX(tblEventos[],SMALL(IF(Datas=L$21,ROW(Datas)),ROW(3:3))-InícioDaLinhaDaTabela,4),\"\")","v":""},null,null,{"$f":"IFERROR(INDEX(tblEventos[],SMALL(IF(Datas=O$21,ROW(Datas)),ROW(3:3))-InícioDaLinhaDaTabela,4),\"\")","v":""},null,null,{"$f":"IFERROR(INDEX(tblEventos[],SMALL(IF(Datas=R$21,ROW(Datas)),ROW(3:3))-InícioDaLinhaDaTabela,4),\"\")","v":""},null,null,{"$f":"IFERROR(INDEX(tblEventos[],SMALL(IF(Datas=U$21,ROW(Datas)),ROW(3:3))-InícioDaLinhaDaTabela,4),\"\")","v":""}]
[null,null,{"$f":"IFERROR(INDEX(tblEventos[],SMALL(IF(Datas=C$21,ROW(Datas)),ROW(4:4))-InícioDaLinhaDaTabela,4),\"\")","v":""},null,null,{"$f":"IFERROR(INDEX(tblEventos[],SMALL(IF(Datas=F$21,ROW(Datas)),ROW(4:4))-InícioDaLinhaDaTabela,4),\"\")","v":""},null,null,{"$f":"IFERROR(INDEX(tblEventos[],SMALL(IF(Datas=I$21,ROW(Datas)),ROW(4:4))-InícioDaLinhaDaTabela,4),\"\")","v":""},null,null,{"$f":"IFERROR(INDEX(tblEventos[],SMALL(IF(Datas=L$21,ROW(Datas)),ROW(4:4))-InícioDaLinhaDaTabela,4),\"\")","v":""},null,null,{"$f":"IFERROR(INDEX(tblEventos[],SMALL(IF(Datas=O$21,ROW(Datas)),ROW(4:4))-InícioDaLinhaDaTabela,4),\"\")","v":""},null,null,{"$f":"IFERROR(INDEX(tblEventos[],SMALL(IF(Datas=R$21,ROW(Datas)),ROW(4:4))-InícioDaLinhaDaTabela,4),\"\")","v":""},null,null,{"$f":"IFERROR(INDEX(tblEventos[],SMALL(IF(Datas=U$21,ROW(Datas)),ROW(4:4))-InícioDaLinhaDaTabela,4),\"\")","v":""}]
[null,null,{"$f":"U21+1","v":"2016-07-25"},null,null,{"$f":"C26+1","v":"2016-07-26"},null,null,{"$f":"F26+1","v":"2016-07-27"},null,null,{"$f":"I26+1","v":"2016-07-28"},null,null,{"$f":"L26+1","v":"2016-07-29"},null,null,{"$f":"O26+1","v":"2016-07-30"},null,null,{"$f":"R26+1","v":"2016-07-31"}]
[null,null,{"$f":"IFERROR(INDEX(tblEventos[],SMALL(IF(Datas=C$26,ROW(Datas)),ROW(1:1))-InícioDaLinhaDaTabela,4),\"\")","v":""},null,null,{"$f":"IFERROR(INDEX(tblEventos[],SMALL(IF(Datas=F$26,ROW(Datas)),ROW(1:1))-InícioDaLinhaDaTabela,4),\"\")","v":"Visita Guiada ao Centro da Cidade"},null,null,{"$f":"IFERROR(INDEX(tblEventos[],SMALL(IF(Datas=I$26,ROW(Datas)),ROW(1:1))-InícioDaLinhaDaTabela,4),\"\")","v":""},null,null,{"$f":"IFERROR(INDEX(tblEventos[],SMALL(IF(Datas=L$26,ROW(Datas)),ROW(1:1))-InícioDaLinhaDaTabela,4),\"\")","v":""},null,null,{"$f":"IFERROR(INDEX(tblEventos[],SMALL(IF(Datas=O$26,ROW(Datas)),ROW(1:1))-InícioDaLinhaDaTabela,4),\"\")","v":"Câmara Municipal"},null,null,{"$f":"IFERROR(INDEX(tblEventos[],SMALL(IF(Datas=R$26,ROW(Datas)),ROW(1:1))-InícioDaLinhaDaTabela,4),\"\")","v":""},null,null,{"$f":"IFERROR(INDEX(tblEventos[],SMALL(IF(Datas=U$26,ROW(Datas)),ROW(1:1))-InícioDaLinhaDaTabela,4),\"\")","v":""}]
[null,null,{"$f":"IFERROR(INDEX(tblEventos[],SMALL(IF(Datas=C$26,ROW(Datas)),ROW(2:2))-InícioDaLinhaDaTabela,4),\"\")","v":""},null,null,{"$f":"IFERROR(INDEX(tblEventos[],SMALL(IF(Datas=F$26,ROW(Datas)),ROW(2:2))-InícioDaLinhaDaTabela,4),\"\")","v":"Visita aos Bares"},null,null,{"$f":"IFERROR(INDEX(tblEventos[],SMALL(IF(Datas=I$26,ROW(Datas)),ROW(2:2))-InícioDaLinhaDaTabela,4),\"\")","v":""},null,null,{"$f":"IFERROR(INDEX(tblEventos[],SMALL(IF(Datas=L$26,ROW(Datas)),ROW(2:2))-InícioDaLinhaDaTabela,4),\"\")","v":""},null,null,{"$f":"IFERROR(INDEX(tblEventos[],SMALL(IF(Datas=O$26,ROW(Datas)),ROW(2:2))-InícioDaLinhaDaTabela,4),\"\")","v":""},null,null,{"$f":"IFERROR(INDEX(tblEventos[],SMALL(IF(Datas=R$26,ROW(Datas)),ROW(2:2))-InícioDaLinhaDaTabela,4),\"\")","v":""},null,null,{"$f":"IFERROR(INDEX(tblEventos[],SMALL(IF(Datas=U$26,ROW(Datas)),ROW(2:2))-InícioDaLinhaDaTabela,4),\"\")","v":""}]
[null,null,{"$f":"IFERROR(INDEX(tblEventos[],SMALL(IF(Datas=C$26,ROW(Datas)),ROW(3:3))-InícioDaLinhaDaTabela,4),\"\")","v":""},null,null,{"$f":"IFERROR(INDEX(tblEventos[],SMALL(IF(Datas=F$26,ROW(Datas)),ROW(3:3))-InícioDaLinhaDaTabela,4),\"\")","v":""},null,null,{"$f":"IFERROR(INDEX(tblEventos[],SMALL(IF(Datas=I$26,ROW(Datas)),ROW(3:3))-InícioDaLinhaDaTabela,4),\"\")","v":""},null,null,{"$f":"IFERROR(INDEX(tblEventos[],SMALL(IF(Datas=L$26,ROW(Datas)),ROW(3:3))-InícioDaLinhaDaTabela,4),\"\")","v":""},null,null,{"$f":"IFERROR(INDEX(tblEventos[],SMALL(IF(Datas=O$26,ROW(Datas)),ROW(3:3))-InícioDaLinhaDaTabela,4),\"\")","v":""},null,null,{"$f":"IFERROR(INDEX(tblEventos[],SMALL(IF(Datas=R$26,ROW(Datas)),ROW(3:3))-InícioDaLinhaDaTabela,4),\"\")","v":""},null,null,{"$f":"IFERROR(INDEX(tblEventos[],SMALL(IF(Datas=U$26,ROW(Datas)),ROW(3:3))-InícioDaLinhaDaTabela,4),\"\")","v":""}]
[null,null,{"$f":"IFERROR(INDEX(tblEventos[],SMALL(IF(Datas=C$26,ROW(Datas)),ROW(4:4))-InícioDaLinhaDaTabela,4),\"\")","v":""},null,null,{"$f":"IFERROR(INDEX(tblEventos[],SMALL(IF(Datas=F$26,ROW(Datas)),ROW(4:4))-InícioDaLinhaDaTabela,4),\"\")","v":""},null,null,{"$f":"IFERROR(INDEX(tblEventos[],SMALL(IF(Datas=I$26,ROW(Datas)),ROW(4:4))-InícioDaLinhaDaTabela,4),\"\")","v":""},null,null,{"$f":"IFERROR(INDEX(tblEventos[],SMALL(IF(Datas=L$26,ROW(Datas)),ROW(4:4))-InícioDaLinhaDaTabela,4),\"\")","v":""},null,null,{"$f":"IFERROR(INDEX(tblEventos[],SMALL(IF(Datas=O$26,ROW(Datas)),ROW(4:4))-InícioDaLinhaDaTabela,4),\"\")","v":""},null,null,{"$f":"IFERROR(INDEX(tblEventos[],SMALL(IF(Datas=R$26,ROW(Datas)),ROW(4:4))-InícioDaLinhaDaTabela,4),\"\")","v":""},null,null,{"$f":"IFERROR(INDEX(tblEventos[],SMALL(IF(Datas=U$26,ROW(Datas)),ROW(4:4))-InícioDaLinhaDaTabela,4),\"\")","v":""}]
[null,null,{"$f":"U26+1","v":"2016-08-01"},null,null,{"$f":"C31+1","v":"2016-08-02"},null,null,"NOTAS:"]
[null,null,{"$f":"IFERROR(INDEX(tblEventos[],SMALL(IF(Datas=C$31,ROW(Datas)),ROW(1:1))-InícioDaLinhaDaTabela,4),\"\")","v":""},null,null,{"$f":"IFERROR(INDEX(tblEventos[],SMALL(IF(Datas=F$31,ROW(Datas)),ROW(1:1))-InícioDaLinhaDaTabela,4),\"\")","v":""}]
[null,null,{"$f":"IFERROR(INDEX(tblEventos[],SMALL(IF(Datas=C$31,ROW(Datas)),ROW(2:2))-InícioDaLinhaDaTabela,4),\"\")","v":""},null,null,{"$f":"IFERROR(INDEX(tblEventos[],SMALL(IF(Datas=F$31,ROW(Datas)),ROW(2:2))-InícioDaLinhaDaTabela,4),\"\")","v":""}]
[null,null,{"$f":"IFERROR(INDEX(tblEventos[],SMALL(IF(Datas=C$31,ROW(Datas)),ROW(3:3))-InícioDaLinhaDaTabela,4),\"\")","v":""},null,null,{"$f":"IFERROR(INDEX(tblEventos[],SMALL(IF(Datas=F$31,ROW(Datas)),ROW(3:3))-InícioDaLinhaDaTabela,4),\"\")","v":""}]
[null,null,{"$f":"IFERROR(INDEX(tblEventos[],SMALL(IF(Datas=C$31,ROW(Datas)),ROW(4:4))-InícioDaLinhaDaTabela,4),\"\")","v":""},null,null,{"$f":"IFERROR(INDEX(tblEventos[],SMALL(IF(Datas=F$31,ROW(Datas)),ROW(4:4))-InícioDaLinhaDaTabela,4),\"\")","v":""}]

{"sheet":"VERSÃO DE IMPRESSÃO","index":2,"n_rows":35,"n_cols":21,"rows_kept":35,"merged":[[1,5,1,11],[30,8,34,20]]}
[]
[null,null,{"$f":"VerAno","v":2016},null,null,{"$f":"VerMês","v":"JULHO"},0,0,0,0,0,0]
[]
[null,null,"SEG",null,null,"TER",null,null,"QUA",null,null,"QUI",null,null,"SEX",null,null,"SÁB",null,null,"DOM"]
[]
[null,null,{"$f":"CALENDÁRIO!C6","v":"2016-06-27"},{"$f":"CALENDÁRIO!D6","v":0},{"$f":"CALENDÁRIO!E6","v":0},{"$f":"CALENDÁRIO!F6","v":"2016-06-28"},{"$f":"CALENDÁRIO!G6","v":0},{"$f":"CALENDÁRIO!H6","v":0},{"$f":"CALENDÁRIO!I6","v":"2016-06-29"},{"$f":"CALENDÁRIO!J6","v":0},{"$f":"CALENDÁRIO!K6","v":0},{"$f":"CALENDÁRIO!L6","v":"2016-06-30"},{"$f":"CALENDÁRIO!M6","v":0},{"$f":"CALENDÁRIO!N6","v":0},{"$f":"CALENDÁRIO!O6","v":"2016-07-01"},{"$f":"CALENDÁRIO!P6","v":0},{"$f":"CALENDÁRIO!Q6","v":0},{"$f":"CALENDÁRIO!R6","v":"2016-07-02"},{"$f":"CALENDÁRIO!S6","v":0},{"$f":"CALENDÁRIO!T6","v":0},{"$f":"CALENDÁRIO!U6","v":"2016-07-03"}]
[null,null,{"$f":"CALENDÁRIO!C7","v":""},{"$f":"CALENDÁRIO!D7","v":0},{"$f":"CALENDÁRIO!E7","v":0},{"$f":"CALENDÁRIO!F7","v":""},{"$f":"CALENDÁRIO!G7","v":0},{"$f":"CALENDÁRIO!H7","v":0},{"$f":"CALENDÁRIO!I7","v":""},{"$f":"CALENDÁRIO!J7","v":0},{"$f":"CALENDÁRIO!K7","v":0},{"$f":"CALENDÁRIO!L7","v":""},{"$f":"CALENDÁRIO!M7","v":0},{"$f":"CALENDÁRIO!N7","v":0},{"$f":"CALENDÁRIO!O7","v":"Jardim Comunitário"},{"$f":"CALENDÁRIO!P7","v":0},{"$f":"CALENDÁRIO!Q7","v":0},{"$f":"CALENDÁRIO!R7","v":"Jardim Comunitário"},{"$f":"CALENDÁRIO!S7","v":0},{"$f":"CALENDÁRIO!T7","v":0},{"$f":"CALENDÁRIO!U7","v":"Noite de Cinema no Parque"}]
[null,null,{"$f":"CALENDÁRIO!C8","v":""},{"$f":"CALENDÁRIO!D8","v":"00:00:00"},{"$f":"CALENDÁRIO!E8","v":"00:00:00"},{"$f":"CALENDÁRIO!F8","v":""},{"$f":"CALENDÁRIO!G8","v":"00:00:00"},{"$f":"CALENDÁRIO!H8","v":"00:00:00"},{"$f":"CALENDÁRIO!I8","v":""},{"$f":"CALENDÁRIO!J8","v":"00:00:00"},{"$f":"CALENDÁRIO!K8","v":"00:00:00"},{"$f":"CALENDÁRIO!L8","v":""},{"$f":"CALENDÁRIO!M8","v":"00:00:00"},{"$f":"CALENDÁRIO!N8","v":"00:00:00"},{"$f":"CALENDÁRIO!O8","v":"Câmara Municipal"},{"$f":"CALENDÁRIO!P8","v":"00:00:00"},{"$f":"CALENDÁRIO!Q8","v":"00:00:00"},{"$f":"CALENDÁRIO!R8","v":""},{"$f":"CALENDÁRIO!S8","v":"00:00:00"},{"$f":"CALENDÁRIO!T8","v":"00:00:00"},{"$f":"CALENDÁRIO!U8","v":""}]
[null,null,{"$f":"CALENDÁRIO!C9","v":""},{"$f":"CALENDÁRIO!D9","v":0},{"$f":"CALENDÁRIO!E9","v":0},{"$f":"CALENDÁRIO!F9","v":""},{"$f":"CALENDÁRIO!G9","v":0},{"$f":"CALENDÁRIO!H9","v":0},{"$f":"CALENDÁRIO!I9","v":""},{"$f":"CALENDÁRIO!J9","v":0},{"$f":"CALENDÁRIO!K9","v":0},{"$f":"CALENDÁRIO!L9","v":""},{"$f":"CALENDÁRIO!M9","v":0},{"$f":"CALENDÁRIO!N9","v":0},{"$f":"CALENDÁRIO!O9","v":""},{"$f":"CALENDÁRIO!P9","v":0},{"$f":"CALENDÁRIO!Q9","v":0},{"$f":"CALENDÁRIO!R9","v":""},{"$f":"CALENDÁRIO!S9","v":0},{"$f":"CALENDÁRIO!T9","v":0},{"$f":"CALENDÁRIO!U9","v":""}]
[null,null,{"$f":"CALENDÁRIO!C10","v":""},{"$f":"CALENDÁRIO!D10","v":0},{"$f":"CALENDÁRIO!E10","v":0},{"$f":"CALENDÁRIO!F10","v":""},{"$f":"CALENDÁRIO!G10","v":0},{"$f":"CALENDÁRIO!H10","v":0},{"$f":"CALENDÁRIO!I10","v":""},{"$f":"CALENDÁRIO!J10","v":0},{"$f":"CALENDÁRIO!K10","v":0},{"$f":"CALENDÁRIO!L10","v":""},{"$f":"CALENDÁRIO!M10","v":0},{"$f":"CALENDÁRIO!N10","v":0},{"$f":"CALENDÁRIO!O10","v":""},{"$f":"CALENDÁRIO!P10","v":0},{"$f":"CALENDÁRIO!Q10","v":0},{"$f":"CALENDÁRIO!R10","v":""},{"$f":"CALENDÁRIO!S10","v":0},{"$f":"CALENDÁRIO!T10","v":0},{"$f":"CALENDÁRIO!U10","v":""}]
[null,null,{"$f":"CALENDÁRIO!C11","v":"2016-07-04"},{"$f":"CALENDÁRIO!D11","v":0},{"$f":"CALENDÁRIO!E11","v":0},{"$f":"CALENDÁRIO!F11","v":"2016-07-05"},{"$f":"CALENDÁRIO!G11","v":0},{"$f":"CALENDÁRIO!H11","v":0},{"$f":"CALENDÁRIO!I11","v":"2016-07-06"},{"$f":"CALENDÁRIO!J11","v":0},{"$f":"CALENDÁRIO!K11","v":0},{"$f":"CALENDÁRIO!L11","v":"2016-07-07"},{"$f":"CALENDÁRIO!M11","v":0},{"$f":"CALENDÁRIO!N11","v":0},{"$f":"CALENDÁRIO!O11","v":"2016-07-08"},{"$f":"CALENDÁRIO!P11","v":0},{"$f":"CALENDÁRIO!Q11","v":0},{"$f":"CALENDÁRIO!R11","v":"2016-07-09"},{"$f":"CALENDÁRIO!S11","v":0},{"$f":"CALENDÁRIO!T11","v":0},{"$f":"CALENDÁRIO!U11","v":"2016-07-10"}]
[null,null,{"$f":"CALENDÁRIO!C12","v":""},{"$f":"CALENDÁRIO!D12","v":0},{"$f":"CALENDÁRIO!E12","v":0},{"$f":"CALENDÁRIO!F12","v":""},{"$f":"CALENDÁRIO!G12","v":0},{"$f":"CALENDÁRIO!H12","v":0},{"$f":"CALENDÁRIO!I12","v":""},{"$f":"CALENDÁRIO!J12","v":0},{"$f":"CALENDÁRIO!K12","v":0},{"$f":"CALENDÁRIO!L12","v":""},{"$f":"CALENDÁRIO!M12","v":0},{"$f":"CALENDÁRIO!N12","v":0},{"$f":"CALENDÁRIO!O12","v":"Câmara Municipal"},{"$f":"CALENDÁRIO!P12","v":0},{"$f":"CALENDÁRIO!Q12","v":0},{"$f":"CALENDÁRIO!R12","v":""},{"$f":"CALENDÁRIO!S12","v":0},{"$f":"CALENDÁRIO!T12","v":0},{"$f":"CALENDÁRIO!U12","v":""}]
[null,null,{"$f":"CALENDÁRIO!C13","v":""},{"$f":"CALENDÁRIO!D13","v":0},{"$f":"CALENDÁRIO!E13","v":0},{"$f":"CALENDÁRIO!F13","v":""},{"$f":"CALENDÁRIO!G13","v":0},{"$f":"CALENDÁRIO!H13","v":0},{"$f":"CALENDÁRIO!I13","v":""},{"$f":"CALENDÁRIO!J13","v":0},{"$f":"CALENDÁRIO!K13","v":0},{"$f":"CALENDÁRIO!L13","v":""},{"$f":"CALENDÁRIO!M13","v":0},{"$f":"CALENDÁRIO!N13","v":0},{"$f":"CALENDÁRIO!O13","v":""},{"$f":"CALENDÁRIO!P13","v":0},{"$f":"CALENDÁRIO!Q13","v":0},{"$f":"CALENDÁRIO!R13","v":""},{"$f":"CALENDÁRIO!S13","v":0},{"$f":"CALENDÁRIO!T13","v":0},{"$f":"CALENDÁRIO!U13","v":""}]
[null,null,{"$f":"CALENDÁRIO!C14","v":""},{"$f":"CALENDÁRIO!D14","v":0},{"$f":"CALENDÁRIO!E14","v":0},{"$f":"CALENDÁRIO!F14","v":""},{"$f":"CALENDÁRIO!G14","v":0},{"$f":"CALENDÁRIO!H14","v":0},{"$f":"CALENDÁRIO!I14","v":""},{"$f":"CALENDÁRIO!J14","v":0},{"$f":"CALENDÁRIO!K14","v":0},{"$f":"CALENDÁRIO!L14","v":""},{"$f":"CALENDÁRIO!M14","v":0},{"$f":"CALENDÁRIO!N14","v":0},{"$f":"CALENDÁRIO!O14","v":""},{"$f":"CALENDÁRIO!P14","v":0},{"$f":"CALENDÁRIO!Q14","v":0},{"$f":"CALENDÁRIO!R14","v":""},{"$f":"CALENDÁRIO!S14","v":0},{"$f":"CALENDÁRIO!T14","v":0},{"$f":"CALENDÁRIO!U14","v":""}]
[null,null,{"$f":"CALENDÁRIO!C15","v":""},{"$f":"CALENDÁRIO!D15","v":0},{"$f":"CALENDÁRIO!E15","v":0},{"$f":"CALENDÁRIO!F15","v":""},{"$f":"CALENDÁRIO!G15","v":0},{"$f":"CALENDÁRIO!H15","v":0},{"$f":"CALENDÁRIO!I15","v":""},{"$f":"CALENDÁRIO!J15","v":0},{"$f":"CALENDÁRIO!K15","v":0},{"$f":"CALENDÁRIO!L15","v":""},{"$f":"CALENDÁRIO!M15","v":0},{"$f":"CALENDÁRIO!N15","v":0},{"$f":"CALENDÁRIO!O15","v":""},{"$f":"CALENDÁRIO!P15","v":0},{"$f":"CALENDÁRIO!Q15","v":0},{"$f":"CALENDÁRIO!R15","v":""},{"$f":"CALENDÁRIO!S15","v":0},{"$f":"CALENDÁRIO!T15","v":0},{"$f":"CALENDÁRIO!U15","v":""}]
[null,null,{"$f":"CALENDÁRIO!C16","v":"2016-07-11"},{"$f":"CALENDÁRIO!D16","v":0},{"$f":"CALENDÁRIO!E16","v":0},{"$f":"CALENDÁRIO!F16","v":"2016-07-12"},{"$f":"CALENDÁRIO!G16","v":0},{"$f":"CALENDÁRIO!H16","v":0},{"$f":"CALENDÁRIO!I16","v":"2016-07-13"},{"$f":"CALENDÁRIO!J16","v":0},{"$f":"CALENDÁRIO!K16","v":0},{"$f":"CALENDÁRIO!L16","v":"2016-07-14"},{"$f":"CALENDÁRIO!M16","v":0},{"$f":"CALENDÁRIO!N16","v":0},{"$f":"CALENDÁRIO!O16","v":"2016-07-15"},{"$f":"CALENDÁRIO!P16","v":0},{"$f":"CALENDÁRIO!Q16","v":0},{"$f":"CALENDÁRIO!R16","v":"2016-07-16"},{"$f":"CALENDÁRIO!S16","v":0},{"$f":"CALENDÁRIO!T16","v":0},{"$f":"CALENDÁRIO!U16","v":"2016-07-17"}]
[null,null,{"$f":"CALENDÁRIO!C17","v":"Câmara de Comércio Almoço"},{"$f":"CALENDÁRIO!D17","v":0},{"$f":"CALENDÁRIO!E17","v":0},{"$f":"CALENDÁRIO!F17","v":"Exposição de Antiguidades"},{"$f":"CALENDÁRIO!G17","v":0},{"$f":"CALENDÁRIO!H17","v":0},{"$f":"CALENDÁRIO!I17","v":""},{"$f":"CALENDÁRIO!J17","v":0},{"$f":"CALENDÁRIO!K17","v":0},{"$f":"CALENDÁRIO!L17","v":"Workshop Comunitário"},{"$f":"CALENDÁRIO!M17","v":0},{"$f":"CALENDÁRIO!N17","v":0},{"$f":"CALENDÁRIO!O17","v":"Câmara Municipal"},{"$f":"CALENDÁRIO!P17","v":0},{"$f":"CALENDÁRIO!Q17","v":0},{"$f":"CALENDÁRIO!R17","v":""},{"$f":"CALENDÁRIO!S17","v":0},{"$f":"CALENDÁRIO!T17","v":0},{"$f":"CALENDÁRIO!U17","v":""}]
[null,null,{"$f":"CALENDÁRIO!C18","v":""},{"$f":"CALENDÁRIO!D18","v":0},{"$f":"CALENDÁRIO!E18","v":0},{"$f":"CALENDÁRIO!F18","v":""},{"$f":"CALENDÁRIO!G18","v":0},{"$f":"CALENDÁRIO!H18","v":0},{"$f":"CALENDÁRIO!I18","v":""},{"$f":"CALENDÁRIO!J18","v":0},{"$f":"CALENDÁRIO!K18","v":0},{"$f":"CALENDÁRIO!L18","v":""},{"$f":"CALENDÁRIO!M18","v":0},{"$f":"CALENDÁRIO!N18","v":0},{"$f":"CALENDÁRIO!O18","v":""},{"$f":"CALENDÁRIO!P18","v":0},{"$f":"CALENDÁRIO!Q18","v":0},{"$f":"CALENDÁRIO!R18","v":""},{"$f":"CALENDÁRIO!S18","v":0},{"$f":"CALENDÁRIO!T18","v":0},{"$f":"CALENDÁRIO!U18","v":""}]
[null,null,{"$f":"CALENDÁRIO!C19","v":""},{"$f":"CALENDÁRIO!D19","v":0},{"$f":"CALENDÁRIO!E19","v":0},{"$f":"CALENDÁRIO!F19","v":""},{"$f":"CALENDÁRIO!G19","v":0},{"$f":"CALENDÁRIO!H19","v":0},{"$f":"CALENDÁRIO!I19","v":""},{"$f":"CALENDÁRIO!J19","v":0},{"$f":"CALENDÁRIO!K19","v":0},{"$f":"CALENDÁRIO!L19","v":""},{"$f":"CALENDÁRIO!M19","v":0},{"$f":"CALENDÁRIO!N19","v":0},{"$f":"CALENDÁRIO!O19","v":""},{"$f":"CALENDÁRIO!P19","v":0},{"$f":"CALENDÁRIO!Q19","v":0},{"$f":"CALENDÁRIO!R19","v":""},{"$f":"CALENDÁRIO!S19","v":0},{"$f":"CALENDÁRIO!T19","v":0},{"$f":"CALENDÁRIO!U19","v":""}]
[null,null,{"$f":"CALENDÁRIO!C20","v":""},{"$f":"CALENDÁRIO!D20","v":0},{"$f":"CALENDÁRIO!E20","v":0},{"$f":"CALENDÁRIO!F20","v":""},{"$f":"CALENDÁRIO!G20","v":0},{"$f":"CALENDÁRIO!H20","v":0},{"$f":"CALENDÁRIO!I20","v":""},{"$f":"CALENDÁRIO!J20","v":0},{"$f":"CALENDÁRIO!K20","v":0},{"$f":"CALENDÁRIO!L20","v":""},{"$f":"CALENDÁRIO!M20","v":0},{"$f":"CALENDÁRIO!N20","v":0},{"$f":"CALENDÁRIO!O20","v":""},{"$f":"CALENDÁRIO!P20","v":0},{"$f":"CALENDÁRIO!Q20","v":0},{"$f":"CALENDÁRIO!R20","v":""},{"$f":"CALENDÁRIO!S20","v":0},{"$f":"CALENDÁRIO!T20","v":0},{"$f":"CALENDÁRIO!U20","v":""}]
[null,null,{"$f":"CALENDÁRIO!C21","v":"2016-07-18"},{"$f":"CALENDÁRIO!D21","v":0},{"$f":"CALENDÁRIO!E21","v":0},{"$f":"CALENDÁRIO!F21","v":"2016-07-19"},{"$f":"CALENDÁRIO!G21","v":0},{"$f":"CALENDÁRIO!H21","v":0},{"$f":"CALENDÁRIO!I21","v":"2016-07-20"},{"$f":"CALENDÁRIO!J21","v":0},{"$f":"CALENDÁRIO!K21","v":0},{"$f":"CALENDÁRIO!L21","v":"2016-07-21"},{"$f":"CALENDÁRIO!M21","v":0},{"$f":"CALENDÁRIO!N21","v":0},{"$f":"CALENDÁRIO!O21","v":"2016-07-22"},{"$f":"CALENDÁRIO!P21","v":0},{"$f":"CALENDÁRIO!Q21","v":0},{"$f":"CALENDÁRIO!R21","v":"2016-07-23"},{"$f":"CALENDÁRIO!S21","v":0},{"$f":"CALENDÁRIO!T21","v":0},{"$f":"CALENDÁRIO!U21","v":"2016-07-24"}]
[null,null,{"$f":"CALENDÁRIO!C22","v":""},{"$f":"CALENDÁRIO!D22","v":0},{"$f":"CALENDÁRIO!E22","v":0},{"$f":"CALENDÁRIO!F22","v":"Workshop de Planeamento Estratégico"},{"$f":"CALENDÁRIO!G22","v":0},{"$f":"CALENDÁRIO!H22","v":0},{"$f":"CALENDÁRIO!I22","v":"Limpeza do Parque"},{"$f":"CALENDÁRIO!J22","v":0},{"$f":"CALENDÁRIO!K22","v":0},{"$f":"CALENDÁRIO!L22","v":""},{"$f":"CALENDÁRIO!M22","v":0},{"$f":"CALENDÁRIO!N22","v":0},{"$f":"CALENDÁRIO!O22","v":"Câmara Municipal"},{"$f":"CALENDÁRIO!P22","v":0},{"$f":"CALENDÁRIO!Q22","v":0},{"$f":"CALENDÁRIO!R22","v":""},{"$f":"CALENDÁRIO!S22","v":0},{"$f":"CALENDÁRIO!T22","v":0},{"$f":"CALENDÁRIO!U22","v":""}]
[null,null,{"$f":"CALENDÁRIO!C23","v":""},{"$f":"CALENDÁRIO!D23","v":0},{"$f":"CALENDÁRIO!E23","v":0},{"$f":"CALENDÁRIO!F23","v":""},{"$f":"CALENDÁRIO!G23","v":0},{"$f":"CALENDÁRIO!H23","v":0},{"$f":"CALENDÁRIO!I23","v":""},{"$f":"CALENDÁRIO!J23","v":0},{"$f":"CALENDÁRIO!K23","v":0},{"$f":"CALENDÁRIO!L23","v":""},{"$f":"CALENDÁRIO!M23","v":0},{"$f":"CALENDÁRIO!N23","v":0},{"$f":"CALENDÁRIO!O23","v":""},{"$f":"CALENDÁRIO!P23","v":0},{"$f":"CALENDÁRIO!Q23","v":0},{"$f":"CALENDÁRIO!R23","v":""},{"$f":"CALENDÁRIO!S23","v":0},{"$f":"CALENDÁRIO!T23","v":0},{"$f":"CALENDÁRIO!U23","v":""}]
[null,null,{"$f":"CALENDÁRIO!C24","v":""},{"$f":"CALENDÁRIO!D24","v":0},{"$f":"CALENDÁRIO!E24","v":0},{"$f":"CALENDÁRIO!F24","v":""},{"$f":"CALENDÁRIO!G24","v":0},{"$f":"CALENDÁRIO!H24","v":0},{"$f":"CALENDÁRIO!I24","v":""},{"$f":"CALENDÁRIO!J24","v":0},{"$f":"CALENDÁRIO!K24","v":0},{"$f":"CALENDÁRIO!L24","v":""},{"$f":"CALENDÁRIO!M24","v":0},{"$f":"CALENDÁRIO!N24","v":0},{"$f":"CALENDÁRIO!O24","v":""},{"$f":"CALENDÁRIO!P24","v":0},{"$f":"CALENDÁRIO!Q24","v":0},{"$f":"CALENDÁRIO!R24","v":""},{"$f":"CALENDÁRIO!S24","v":0},{"$f":"CALENDÁRIO!T24","v":0},{"$f":"CALENDÁRIO!U24","v":""}]
[null,null,{"$f":"CALENDÁRIO!C25","v":""},{"$f":"CALENDÁRIO!D25","v":0},{"$f":"CALENDÁRIO!E25","v":0},{"$f":"CALENDÁRIO!F25","v":""},{"$f":"CALENDÁRIO!G25","v":0},{"$f":"CALENDÁRIO!H25","v":0},{"$f":"CALENDÁRIO!I25","v":""},{"$f":"CALENDÁRIO!J25","v":0},{"$f":"CALENDÁRIO!K25","v":0},{"$f":"CALENDÁRIO!L25","v":""},{"$f":"CALENDÁRIO!M25","v":0},{"$f":"CALENDÁRIO!N25","v":0},{"$f":"CALENDÁRIO!O25","v":""},{"$f":"CALENDÁRIO!P25","v":0},{"$f":"CALENDÁRIO!Q25","v":0},{"$f":"CALENDÁRIO!R25","v":""},{"$f":"CALENDÁRIO!S25","v":0},{"$f":"CALENDÁRIO!T25","v":0},{"$f":"CALENDÁRIO!U25","v":""}]
[null,null,{"$f":"CALENDÁRIO!C26","v":"2016-07-25"},{"$f":"CALENDÁRIO!D26","v":0},{"$f":"CALENDÁRIO!E26","v":0},{"$f":"CALENDÁRIO!F26","v":"2016-07-26"},{"$f":"CALENDÁRIO!G26","v":0},{"$f":"CALENDÁRIO!H26","v":0},{"$f":"CALENDÁRIO!I26","v":"2016-07-27"},{"$f":"CALENDÁRIO!J26","v":0},{"$f":"CALENDÁRIO!K26","v":0},{"$f":"CALENDÁRIO!L26","v":"2016-07-28"},{"$f":"CALENDÁRIO!M26","v":0},{"$f":"CALENDÁRIO!N26","v":0},{"$f":"CALENDÁRIO!O26","v":"2016-07-29"},{"$f":"CALENDÁRIO!P26","v":0},{"$f":"CALENDÁRIO!Q26","v":0},{"$f":"CALENDÁRIO!R26","v":"2016-07-30"},{"$f":"CALENDÁRIO!S26","v":0},{"$f":"CALENDÁRIO!T26","v":0},{"$f":"CALENDÁRIO!U26","v":"2016-07-31"}]
[null,null,{"$f":"CALENDÁRIO!C27","v":""},{"$f":"CALENDÁRIO!D27","v":0},{"$f":"CALENDÁRIO!E27","v":0},{"$f":"CALENDÁRIO!F27","v":"Visita Guiada ao Centro da Cidade"},{"$f":"CALENDÁRIO!G27","v":0},{"$f":"CALENDÁRIO!H27","v":0},{"$f":"CALENDÁRIO!I27","v":""},{"$f":"CALENDÁRIO!J27","v":0},{"$f":"CALENDÁRIO!K27","v":0},{"$f":"CALENDÁRIO!L27","v":""},{"$f":"CALENDÁRIO!M27","v":0},{"$f":"CALENDÁRIO!N27","v":0},{"$f":"CALENDÁRIO!O27","v":"Câmara Municipal"},{"$f":"CALENDÁRIO!P27","v":0},{"$f":"CALENDÁRIO!Q27","v":0},{"$f":"CALENDÁRIO!R27","v":""},{"$f":"CALENDÁRIO!S27","v":0},{"$f":"CALENDÁRIO!T27","v":0},{"$f":"CALENDÁRIO!U27","v":""}]
[null,null,{"$f":"CALENDÁRIO!C28","v":""},{"$f":"CALENDÁRIO!D28","v":0},{"$f":"CALENDÁRIO!E28","v":0},{"$f":"CALENDÁRIO!F28","v":"Visita aos Bares"},{"$f":"CALENDÁRIO!G28","v":0},{"$f":"CALENDÁRIO!H28","v":0},{"$f":"CALENDÁRIO!I28","v":""},{"$f":"CALENDÁRIO!J28","v":0},{"$f":"CALENDÁRIO!K28","v":0},{"$f":"CALENDÁRIO!L28","v":""},{"$f":"CALENDÁRIO!M28","v":0},{"$f":"CALENDÁRIO!N28","v":0},{"$f":"CALENDÁRIO!O28","v":""},{"$f":"CALENDÁRIO!P28","v":0},{"$f":"CALENDÁRIO!Q28","v":0},{"$f":"CALENDÁRIO!R28","v":""},{"$f":"CALENDÁRIO!S28","v":0},{"$f":"CALENDÁRIO!T28","v":0},{"$f":"CALENDÁRIO!U28","v":""}]
[null,null,{"$f":"CALENDÁRIO!C29","v":""},{"$f":"CALENDÁRIO!D29","v":0},{"$f":"CALENDÁRIO!E29","v":0},{"$f":"CALENDÁRIO!F29","v":""},{"$f":"CALENDÁRIO!G29","v":0},{"$f":"CALENDÁRIO!H29","v":0},{"$f":"CALENDÁRIO!I29","v":""},{"$f":"CALENDÁRIO!J29","v":0},{"$f":"CALENDÁRIO!K29","v":0},{"$f":"CALENDÁRIO!L29","v":""},{"$f":"CALENDÁRIO!M29","v":0},{"$f":"CALENDÁRIO!N29","v":0},{"$f":"CALENDÁRIO!O29","v":""},{"$f":"CALENDÁRIO!P29","v":0},{"$f":"CALENDÁRIO!Q29","v":0},{"$f":"CALENDÁRIO!R29","v":""},{"$f":"CALENDÁRIO!S29","v":0},{"$f":"CALENDÁRIO!T29","v":0},{"$f":"CALENDÁRIO!U29","v":""}]
[null,null,{"$f":"CALENDÁRIO!C30","v":""},{"$f":"CALENDÁRIO!D30","v":0},{"$f":"CALENDÁRIO!E30","v":0},{"$f":"CALENDÁRIO!F30","v":""},{"$f":"CALENDÁRIO!G30","v":0},{"$f":"CALENDÁRIO!H30","v":0},{"$f":"CALENDÁRIO!I30","v":""},{"$f":"CALENDÁRIO!J30","v":0},{"$f":"CALENDÁRIO!K30","v":0},{"$f":"CALENDÁRIO!L30","v":""},{"$f":"CALENDÁRIO!M30","v":0},{"$f":"CALENDÁRIO!N30","v":0},{"$f":"CALENDÁRIO!O30","v":""},{"$f":"CALENDÁRIO!P30","v":0},{"$f":"CALENDÁRIO!Q30","v":0},{"$f":"CALENDÁRIO!R30","v":""},{"$f":"CALENDÁRIO!S30","v":0},{"$f":"CALENDÁRIO!T30","v":0},{"$f":"CALENDÁRIO!U30","v":""}]
[null,null,{"$f":"CALENDÁRIO!C31","v":"2016-08-01"},{"$f":"CALENDÁRIO!D31","v":0},{"$f":"CALENDÁRIO!E31","v":0},{"$f":"CALENDÁRIO!F31","v":"2016-08-02"},null,null,{"$f":"CALENDÁRIO!I31","v":"NOTAS:"}]
[null,null,{"$f":"CALENDÁRIO!C32","v":""},{"$f":"CALENDÁRIO!D32","v":0},{"$f":"CALENDÁRIO!E32","v":0},{"$f":"CALENDÁRIO!F32","v":""}]
[null,null,{"$f":"CALENDÁRIO!C33","v":""},{"$f":"CALENDÁRIO!D33","v":0},{"$f":"CALENDÁRIO!E33","v":0},{"$f":"CALENDÁRIO!F33","v":""}]
[null,null,{"$f":"CALENDÁRIO!C34","v":""},{"$f":"CALENDÁRIO!D34","v":0},{"$f":"CALENDÁRIO!E34","v":0},{"$f":"CALENDÁRIO!F34","v":""}]
[null,null,{"$f":"CALENDÁRIO!C35","v":""},{"$f":"CALENDÁRIO!D35","v":0},{"$f":"CALENDÁRIO!E35","v":0},{"$f":"CALENDÁRIO!F35","v":""}]

{"sheet":"ADMINISTRADOR","index":3,"n_rows":14,"n_cols":3,"rows_kept":14,"hidden":true}
[]
[null,"MÊS","NÚMERO"]
[null,"JANEIRO",1]
[null,"FEVEREIRO",2]
[null,"MARÇO",3]
[null,"ABRIL",4]
[null,"MAI",5]
[null,"JUNHO",6]
[null,"JULHO",7]
[null,"AGOSTO",8]
[null,"SETEMBRO",9]
[null,"OUTUBRO",10]
[null,"NOVEMBRO",11]
[null,"DEZEMBRO",12]